[Event "*** Titled Tuesday Blitz"]
[Site "Chess.com"]
[Date "2020.12.29"]
[Round "2"]
[White "guillembaches"]
[Black "PavlovDanila"]
[Result "1/2-1/2"]
[WhiteElo "2466"]
[BlackElo "2692"]
[TimeControl "180+1"]
[EndTime "10:17:56 PST"]
[Termination "Game drawn by agreement"]

1. e4 {[%clk 0:03:00.9]} 1... e6 {[%clk 0:02:59.7]} 2. d4 {[%clk 0:03:00]} 2...
d5 {[%clk 0:02:59.8]} 3. exd5 {[%clk 0:03:00.7]} 3... exd5 {[%clk 0:03:00.1]} 4.
Nf3 {[%clk 0:03:01.4]} 4... Nc6 {[%clk 0:02:59.9]} 5. Bb5 {[%clk 0:03:01.4]}
5... Bd6 {[%clk 0:02:58.9]} 6. c4 {[%clk 0:03:01.9]} 6... dxc4 {[%clk
0:02:31.5]} 7. d5 {[%clk 0:03:02.8]} 7... a6 {[%clk 0:02:31.5]} 8. Ba4 {[%clk
0:03:02.9]} 8... b5 {[%clk 0:02:31.3]} 9. dxc6 {[%clk 0:03:03.3]} 9... bxa4
{[%clk 0:02:31.6]} 10. Qxa4 {[%clk 0:03:03.7]} 10... Qe7+ {[%clk 0:02:26.1]} 11.
Be3 {[%clk 0:02:58.7]} 11... Be6 {[%clk 0:02:20.7]} 12. Nbd2 {[%clk 0:02:52.4]}
12... Nf6 {[%clk 0:02:19.7]} 13. Nxc4 {[%clk 0:02:47.8]} 13... Bc5 {[%clk
0:02:19.8]} 14. O-O {[%clk 0:02:34.7]} 14... O-O {[%clk 0:02:15.4]} 15. Bxc5
{[%clk 0:02:23.8]} 15... Qxc5 {[%clk 0:02:14.3]} 16. Rac1 {[%clk 0:02:23.7]}
16... Qh5 {[%clk 0:02:07.5]} 17. Nce5 {[%clk 0:02:15]} 17... Bd5 {[%clk
0:02:00.2]} 18. Rfe1 {[%clk 0:02:03.7]} 18... Rfe8 {[%clk 0:01:56.8]} 19. b3
{[%clk 0:01:52.1]} 19... Re7 {[%clk 0:01:37]} 20. Qf4 {[%clk 0:01:41.4]} 20...
Rae8 {[%clk 0:01:30.4]} 21. h3 {[%clk 0:01:29.7]} 21... h6 {[%clk 0:01:04.4]}
22. Re3 {[%clk 0:01:23.5]} 22... Bxf3 {[%clk 0:00:52.1]} 23. Nxf3 {[%clk
0:01:17.9]} 23... Rxe3 {[%clk 0:00:28.8]} 24. fxe3 {[%clk 0:01:18.8]} 24... Nd5
{[%clk 0:00:29]} 25. Qg3 {[%clk 0:01:02.2]} 25... Rxe3 {[%clk 0:00:22.5]} 26.
Re1 {[%clk 0:00:54.6]} 26... Rxe1+ {[%clk 0:00:19.5]} 27. Qxe1 {[%clk
0:00:54.6]} 27... Qg6 {[%clk 0:00:17.8]} 28. Qe8+ {[%clk 0:00:39.4]} 28... Kh7
{[%clk 0:00:17.7]} 29. Qd7 {[%clk 0:00:39.7]} 29... Qd3 {[%clk 0:00:06.1]} 30.
Kh2 {[%clk 0:00:30.5]} 30... f6 {[%clk 0:00:04.4]} 31. Qg4 {[%clk 0:00:27.2]}
31... Qg6 {[%clk 0:00:02.7]} 32. Qd4 {[%clk 0:00:20.6]} 32... Qf5 {[%clk
0:00:02.5]} 1/2-1/2

[Event "*** Titled Tuesday Blitz"]
[Site "Chess.com"]
[Date "2020.12.29"]
[Round "2"]
[White "Jospem"]
[Black "GameOverBro"]
[Result "1-0"]
[WhiteElo "2982"]
[BlackElo "2481"]
[TimeControl "180+1"]
[EndTime "10:17:57 PST"]
[Termination "Jospem won by resignation"]

1. e4 {[%clk 0:03:00.9]} 1... d6 {[%clk 0:02:59.8]} 2. d4 {[%clk 0:03:00.8]}
2... Nf6 {[%clk 0:02:59.9]} 3. Bd3 {[%clk 0:02:59.9]} 3... e5 {[%clk 0:02:59.9]}
4. c3 {[%clk 0:02:59.4]} 4... d5 {[%clk 0:02:49.7]} 5. dxe5 {[%clk 0:02:47.6]}
5... Nxe4 {[%clk 0:02:49]} 6. Nf3 {[%clk 0:02:48.3]} 6... Nd7 {[%clk 0:02:39.6]}
7. O-O {[%clk 0:02:47.5]} 7... Ndc5 {[%clk 0:02:38.4]} 8. Be2 {[%clk 0:02:44.7]}
8... Be7 {[%clk 0:02:36.2]} 9. Be3 {[%clk 0:02:35.2]} 9... O-O {[%clk
0:02:34.1]} 10. Nbd2 {[%clk 0:02:28.6]} 10... Bg4 {[%clk 0:02:32.9]} 11. h3
{[%clk 0:02:27.1]} 11... Bh5 {[%clk 0:02:32.8]} 12. Nd4 {[%clk 0:02:20]} 12...
Bxe2 {[%clk 0:02:30.1]} 13. Qxe2 {[%clk 0:02:19.1]} 13... Nxd2 {[%clk
0:02:29.2]} 14. Bxd2 {[%clk 0:02:20]} 14... Ne4 {[%clk 0:02:29]} 15. Rad1 {[%clk
0:02:13.2]} 15... Bc5 {[%clk 0:02:24.2]} 16. Be3 {[%clk 0:02:11.6]} 16... Bxd4
{[%clk 0:02:01.2]} 17. cxd4 {[%clk 0:02:10.5]} 17... f6 {[%clk 0:01:52.4]} 18.
Qb5 {[%clk 0:01:57.7]} 18... Rb8 {[%clk 0:01:44.1]} 19. f3 {[%clk 0:01:45]}
19... Ng3 {[%clk 0:01:41.8]} 20. Rfe1 {[%clk 0:01:45.4]} 20... c6 {[%clk
0:01:35.1]} 21. Qa4 {[%clk 0:01:45.2]} 21... Qb6 {[%clk 0:01:26.4]} 22. Bf2
{[%clk 0:01:40.6]} 22... Nh5 {[%clk 0:00:54.1]} 23. Qc2 {[%clk 0:01:29.1]} 23...
Rbe8 {[%clk 0:00:52.8]} 24. Qd2 {[%clk 0:01:18.6]} 24... g6 {[%clk 0:00:50.3]}
25. g4 {[%clk 0:01:10.3]} 25... Ng7 {[%clk 0:00:50.3]} 26. exf6 {[%clk
0:01:10.1]} 26... Rxe1+ {[%clk 0:00:46.6]} 27. Rxe1 {[%clk 0:01:11]} 27... Rxf6
{[%clk 0:00:46.5]} 28. Qc3 {[%clk 0:00:50.7]} 28... Ne6 {[%clk 0:00:41.4]} 29.
Re5 {[%clk 0:00:39.2]} 29... Nf4 {[%clk 0:00:27.8]} 30. Kh2 {[%clk 0:00:38.2]}
30... Qc7 {[%clk 0:00:25.5]} 31. Qe3 {[%clk 0:00:32.7]} 31... g5 {[%clk
0:00:15.5]} 32. Rxg5+ {[%clk 0:00:26.4]} 32... Kf7 {[%clk 0:00:14.5]} 33. Bg3
{[%clk 0:00:23.2]} 33... Qe7 {[%clk 0:00:12.5]} 34. Bxf4 {[%clk 0:00:17.9]} 1-0

[Event "*** Titled Tuesday Blitz"]
[Site "Chess.com"]
[Date "2020.12.29"]
[Round "2"]
[White "Vyacheslav_N"]
[Black "Harsha_Bharathakoti"]
[Result "1-0"]
[WhiteElo "2436"]
[BlackElo "2817"]
[TimeControl "180+1"]
[EndTime "10:17:58 PST"]
[Termination "Vyacheslav_N won on time"]

1. e4 {[%clk 0:03:00.9]} 1... d6 {[%clk 0:02:58.2]} 2. d4 {[%clk 0:02:59.5]}
2... Nf6 {[%clk 0:02:58.5]} 3. Nc3 {[%clk 0:02:58.3]} 3... g6 {[%clk 0:02:58.7]}
4. g3 {[%clk 0:02:44.5]} 4... Bg7 {[%clk 0:02:56.3]} 5. Bg2 {[%clk 0:02:45]}
5... O-O {[%clk 0:02:56.6]} 6. Nge2 {[%clk 0:02:45.5]} 6... Na6 {[%clk 0:02:51]}
7. O-O {[%clk 0:02:42.7]} 7... c5 {[%clk 0:02:51.3]} 8. h3 {[%clk 0:02:43]} 8...
cxd4 {[%clk 0:02:46.6]} 9. Nxd4 {[%clk 0:02:43.9]} 9... Nc5 {[%clk 0:02:47.1]}
10. Re1 {[%clk 0:02:39.7]} 10... Bd7 {[%clk 0:02:44.5]} 11. f4 {[%clk
0:02:33.4]} 11... Rc8 {[%clk 0:02:32.3]} 12. Kh2 {[%clk 0:02:29.9]} 12... a6
{[%clk 0:02:25.9]} 13. Nb3 {[%clk 0:02:25.5]} 13... b5 {[%clk 0:02:20.1]} 14.
Nxc5 {[%clk 0:02:24.3]} 14... Rxc5 {[%clk 0:02:21]} 15. Be3 {[%clk 0:02:19.7]}
15... Rc8 {[%clk 0:02:21.4]} 16. a3 {[%clk 0:02:14.4]} 16... Qc7 {[%clk
0:02:19.3]} 17. Rc1 {[%clk 0:02:03.3]} 17... a5 {[%clk 0:01:59.3]} 18. Bd4
{[%clk 0:01:56.6]} 18... b4 {[%clk 0:01:56.4]} 19. axb4 {[%clk 0:01:57.5]} 19...
axb4 {[%clk 0:01:57.3]} 20. Nd5 {[%clk 0:01:54]} 20... Nxd5 {[%clk 0:01:53.3]}
21. exd5 {[%clk 0:01:47.5]} 21... Bxd4 {[%clk 0:01:04.3]} 22. Qxd4 {[%clk
0:01:48.4]} 22... Qc4 {[%clk 0:00:50.1]} 23. Qxc4 {[%clk 0:01:37.3]} 23... Rxc4
{[%clk 0:00:51]} 24. Rxe7 {[%clk 0:01:37.4]} 24... Bf5 {[%clk 0:00:51.4]} 25. c3
{[%clk 0:01:30.6]} 25... Rfc8 {[%clk 0:00:33]} 26. g4 {[%clk 0:00:28.6]} 26...
Kf8 {[%clk 0:00:27]} 27. Rb7 {[%clk 0:00:21.7]} 27... Bd3 {[%clk 0:00:26.2]} 28.
Rd1 {[%clk 0:00:19.9]} 28... bxc3 {[%clk 0:00:21.8]} 29. bxc3 {[%clk 0:00:18.6]}
29... Rxc3 {[%clk 0:00:22.1]} 30. Rd2 {[%clk 0:00:18.6]} 30... R8c4 {[%clk
0:00:15.3]} 31. Rb6 {[%clk 0:00:17.2]} 1-0

[Event "*** Titled Tuesday Blitz"]
[Site "Chess.com"]
[Date "2020.12.29"]
[Round "2"]
[White "Rytenko_V"]
[Black "Arseniy_Nesterov"]
[Result "0-1"]
[WhiteElo "2444"]
[BlackElo "2764"]
[TimeControl "180+1"]
[EndTime "10:18:01 PST"]
[Termination "Arseniy_Nesterov won by resignation"]

1. d4 {[%clk 0:02:59.6]} 1... Nf6 {[%clk 0:02:58.9]} 2. Nf3 {[%clk 0:02:58.4]}
2... e6 {[%clk 0:02:58.9]} 3. Bg5 {[%clk 0:02:58.8]} 3... d5 {[%clk 0:02:56.1]}
4. e3 {[%clk 0:02:58.6]} 4... Be7 {[%clk 0:02:55.2]} 5. Bd3 {[%clk 0:02:58.3]}
5... O-O {[%clk 0:02:52.2]} 6. O-O {[%clk 0:02:58.8]} 6... c5 {[%clk 0:02:50.8]}
7. c3 {[%clk 0:02:58.4]} 7... b6 {[%clk 0:02:50.2]} 8. Nbd2 {[%clk 0:02:57.6]}
8... Ba6 {[%clk 0:02:48.6]} 9. Bxa6 {[%clk 0:02:54.9]} 9... Nxa6 {[%clk
0:02:49.5]} 10. Rc1 {[%clk 0:02:55.2]} 10... Nb8 {[%clk 0:02:47.1]} 11. Qe2
{[%clk 0:02:54.4]} 11... Nc6 {[%clk 0:02:42.6]} 12. Rfd1 {[%clk 0:02:52.9]}
12... h6 {[%clk 0:02:30.2]} 13. Bh4 {[%clk 0:02:51.4]} 13... Qc7 {[%clk
0:02:21.6]} 14. h3 {[%clk 0:02:44.1]} 14... e5 {[%clk 0:02:01.3]} 15. Nxe5
{[%clk 0:02:36.8]} 15... Nxe5 {[%clk 0:02:00.9]} 16. Bg3 {[%clk 0:02:32.2]}
16... Bd6 {[%clk 0:01:55.4]} 17. dxe5 {[%clk 0:02:32.6]} 17... Bxe5 {[%clk
0:01:55.7]} 18. Bxe5 {[%clk 0:02:33.5]} 18... Qxe5 {[%clk 0:01:56.3]} 19. Nf3
{[%clk 0:02:34.4]} 19... Qe6 {[%clk 0:01:52.7]} 20. a3 {[%clk 0:02:30.2]} 20...
Rad8 {[%clk 0:01:50.8]} 21. Rc2 {[%clk 0:02:30.2]} 21... Ne4 {[%clk 0:01:46.7]}
22. Nd2 {[%clk 0:02:29.3]} 22... Nd6 {[%clk 0:01:23.6]} 23. Qh5 {[%clk
0:02:13.4]} 23... f5 {[%clk 0:01:21]} 24. Nf1 {[%clk 0:01:59]} 24... Ne4 {[%clk
0:01:16.8]} 25. Qf3 {[%clk 0:01:56.4]} 25... Qe5 {[%clk 0:00:50.8]} 26. Nd2
{[%clk 0:01:40.1]} 26... f4 {[%clk 0:00:46.7]} 27. Nxe4 {[%clk 0:01:07.1]} 27...
dxe4 {[%clk 0:00:45.6]} 28. Qg4 {[%clk 0:01:06.8]} 28... h5 {[%clk 0:00:40.5]}
29. Qe2 {[%clk 0:01:06.7]} 29... f3 {[%clk 0:00:40.6]} 30. Qf1 {[%clk
0:01:06.4]} 30... fxg2 {[%clk 0:00:23.6]} 31. Qe1 {[%clk 0:01:06.3]} 31... Qf5
{[%clk 0:00:20.5]} 32. Rxd8 {[%clk 0:00:32.8]} 32... Qxh3 {[%clk 0:00:18.9]} 33.
Rxf8+ {[%clk 0:00:28.4]} 33... Kxf8 {[%clk 0:00:19]} 34. f4 {[%clk 0:00:18.2]}
34... Qh1+ {[%clk 0:00:19]} 35. Kf2 {[%clk 0:00:18.6]} 35... Qxe1+ {[%clk
0:00:19]} 36. Kxe1 {[%clk 0:00:19]} 36... g1=Q+ {[%clk 0:00:19.5]} 37. Kd2
{[%clk 0:00:19.9]} 37... Qf2+ {[%clk 0:00:19.1]} 38. Kd1 {[%clk 0:00:20.5]}
38... Qxe3 {[%clk 0:00:19]} 39. Re2 {[%clk 0:00:21.4]} 39... Qd3+ {[%clk
0:00:18.3]} 40. Ke1 {[%clk 0:00:22.3]} 40... h4 {[%clk 0:00:18.4]} 0-1

[Event "*** Titled Tuesday Blitz"]
[Site "Chess.com"]
[Date "2020.12.29"]
[Round "2"]
[White "catzapto"]
[Black "ZverevLev"]
[Result "0-1"]
[WhiteElo "2109"]
[BlackElo "2395"]
[TimeControl "180+1"]
[EndTime "10:18:03 PST"]
[Termination "ZverevLev won by resignation"]

1. e4 {[%clk 0:03:00.9]} 1... c5 {[%clk 0:02:59]} 2. Nf3 {[%clk 0:03:00.8]} 2...
d6 {[%clk 0:02:58.4]} 3. c3 {[%clk 0:03:01.1]} 3... Nf6 {[%clk 0:02:57.5]} 4.
Be2 {[%clk 0:03:00.6]} 4... Nc6 {[%clk 0:02:56.4]} 5. d4 {[%clk 0:02:59.3]} 5...
cxd4 {[%clk 0:02:52.3]} 6. cxd4 {[%clk 0:03:00.2]} 6... e6 {[%clk 0:02:53.1]} 7.
Nc3 {[%clk 0:02:58.7]} 7... d5 {[%clk 0:02:48.2]} 8. e5 {[%clk 0:02:55.3]} 8...
Ne4 {[%clk 0:02:43.2]} 9. O-O {[%clk 0:02:47.1]} 9... Nxc3 {[%clk 0:02:41.6]}
10. bxc3 {[%clk 0:02:46.5]} 10... Be7 {[%clk 0:02:42.3]} 11. Bd3 {[%clk
0:02:39.6]} 11... O-O {[%clk 0:02:40.8]} 12. Rb1 {[%clk 0:02:26]} 12... h6
{[%clk 0:02:38.8]} 13. Bc2 {[%clk 0:02:24.5]} 13... f5 {[%clk 0:02:31.6]} 14.
exf6 {[%clk 0:02:23]} 14... Rxf6 {[%clk 0:02:28.4]} 15. Qd3 {[%clk 0:02:22.9]}
15... Qc7 {[%clk 0:02:16.9]} 16. Qh7+ {[%clk 0:02:21.1]} 16... Kf7 {[%clk
0:02:13.3]} 17. Bd2 {[%clk 0:02:02.1]} 17... Bf8 {[%clk 0:02:02.3]} 18. Rfe1
{[%clk 0:01:52]} 18... Bd7 {[%clk 0:02:00.3]} 19. Ne5+ {[%clk 0:01:52.1]} 19...
Ke7 {[%clk 0:01:52.3]} 20. g3 {[%clk 0:01:34.3]} 20... Nxe5 {[%clk 0:01:44.7]}
21. dxe5 {[%clk 0:01:32.4]} 21... Rf7 {[%clk 0:01:43.8]} 22. Bg6 {[%clk
0:01:30.9]} 22... Bc6 {[%clk 0:01:33.3]} 23. Bxf7 {[%clk 0:01:29.4]} 23... Kxf7
{[%clk 0:01:33.2]} 24. Bxh6 {[%clk 0:01:28.5]} 24... d4 {[%clk 0:01:26.2]} 25.
Rb4 {[%clk 0:01:16.2]} 25... Rd8 {[%clk 0:01:17.9]} 26. Rxd4 {[%clk 0:01:15.1]}
26... Rxd4 {[%clk 0:01:16.8]} 27. cxd4 {[%clk 0:01:16]} 27... Qa5 {[%clk
0:01:16.3]} 28. Re3 {[%clk 0:00:59.6]} 28... Qxa2 {[%clk 0:00:59.7]} 29. f3
{[%clk 0:00:52.9]} 29... Qa1+ {[%clk 0:00:54.3]} 30. Kf2 {[%clk 0:00:51.8]}
30... Qxd4 {[%clk 0:00:53.8]} 31. Qd3 {[%clk 0:00:51.7]} 31... Qxd3 {[%clk
0:00:44.9]} 32. Rxd3 {[%clk 0:00:51.4]} 32... gxh6 {[%clk 0:00:45.7]} 33. f4
{[%clk 0:00:51.5]} 33... Bc5+ {[%clk 0:00:43.9]} 34. Ke1 {[%clk 0:00:49.6]}
34... a5 {[%clk 0:00:43.4]} 35. g4 {[%clk 0:00:47.5]} 35... a4 {[%clk
0:00:42.2]} 36. f5 {[%clk 0:00:46.1]} 36... a3 {[%clk 0:00:42.3]} 37. Rd1 {[%clk
0:00:27.5]} 37... a2 {[%clk 0:00:35.5]} 0-1

[Event "*** Titled Tuesday Blitz"]
[Site "Chess.com"]
[Date "2020.12.29"]
[Round "2"]
[White "dankalpacas"]
[Black "Bulldog167"]
[Result "0-1"]
[WhiteElo "2409"]
[BlackElo "2687"]
[TimeControl "180+1"]
[EndTime "10:18:04 PST"]
[Termination "Bulldog167 won by resignation"]

1. c4 {[%clk 0:02:59.5]} 1... Nf6 {[%clk 0:02:58]} 2. Nc3 {[%clk 0:02:59.6]}
2... g6 {[%clk 0:02:58.2]} 3. e4 {[%clk 0:02:58.8]} 3... d6 {[%clk 0:02:58]} 4.
d4 {[%clk 0:02:58.8]} 4... Bg7 {[%clk 0:02:58]} 5. Nf3 {[%clk 0:02:58.3]} 5...
O-O {[%clk 0:02:57.6]} 6. Bd3 {[%clk 0:02:58.4]} 6... Bg4 {[%clk 0:02:48.2]} 7.
h3 {[%clk 0:02:56.3]} 7... Bxf3 {[%clk 0:02:41.9]} 8. Qxf3 {[%clk 0:02:57.2]}
8... Nfd7 {[%clk 0:02:40.3]} 9. Be3 {[%clk 0:02:55.3]} 9... Nc6 {[%clk
0:02:37.9]} 10. Ne2 {[%clk 0:02:50.1]} 10... e5 {[%clk 0:02:30]} 11. d5 {[%clk
0:02:45.7]} 11... Nb4 {[%clk 0:02:23.1]} 12. Bb1 {[%clk 0:02:44.6]} 12... a5
{[%clk 0:02:23.5]} 13. O-O {[%clk 0:02:39]} 13... Qh4 {[%clk 0:02:11.5]} 14. Ng3
{[%clk 0:02:30.3]} 14... Bh6 {[%clk 0:01:52.6]} 15. a3 {[%clk 0:01:53.9]} 15...
Na6 {[%clk 0:01:50.7]} 16. Bc2 {[%clk 0:01:54.2]} 16... Nb6 {[%clk 0:01:30.1]}
17. Bxb6 {[%clk 0:01:41.1]} 17... cxb6 {[%clk 0:01:31]} 18. Qb3 {[%clk 0:01:41]}
18... Qd8 {[%clk 0:01:20.6]} 19. Qb5 {[%clk 0:01:21.2]} 19... Qc7 {[%clk
0:01:03.5]} 20. Ne2 {[%clk 0:01:01.4]} 20... Qc5 {[%clk 0:00:52.7]} 21. Ba4
{[%clk 0:00:53.3]} 21... Qxb5 {[%clk 0:00:49.1]} 22. Bxb5 {[%clk 0:00:53]} 22...
Nc5 {[%clk 0:00:49.9]} 23. Nc3 {[%clk 0:00:40.3]} 23... Bd2 {[%clk 0:00:32.8]}
24. f3 {[%clk 0:00:31.6]} 24... Bxc3 {[%clk 0:00:32.1]} 25. bxc3 {[%clk
0:00:31.6]} 25... f5 {[%clk 0:00:31.5]} 26. exf5 {[%clk 0:00:29.7]} 26... Rxf5
{[%clk 0:00:23.7]} 27. Rab1 {[%clk 0:00:29.7]} 27... Raf8 {[%clk 0:00:20.3]} 28.
Rfe1 {[%clk 0:00:27.6]} 28... Rf4 {[%clk 0:00:19.8]} 29. Re3 {[%clk 0:00:26.4]}
29... g5 {[%clk 0:00:19]} 30. Kh2 {[%clk 0:00:20.7]} 30... h5 {[%clk 0:00:18.5]}
31. Kg3 {[%clk 0:00:20.7]} 31... Kg7 {[%clk 0:00:18.8]} 32. Rh1 {[%clk
0:00:19.2]} 32... Kf6 {[%clk 0:00:12]} 33. h4 {[%clk 0:00:18.3]} 33... gxh4+
{[%clk 0:00:09.9]} 34. Kf2 {[%clk 0:00:17]} 34... Rg8 {[%clk 0:00:07.9]} 35.
Ree1 {[%clk 0:00:16.5]} 35... Nd3+ {[%clk 0:00:07.1]} 36. Ke2 {[%clk 0:00:16.1]}
36... Nxe1 {[%clk 0:00:08]} 37. Kxe1 {[%clk 0:00:16.2]} 37... Rxg2 {[%clk
0:00:08.5]} 0-1

[Event "*** Titled Tuesday Blitz"]
[Site "Chess.com"]
[Date "2020.12.29"]
[Round "2"]
[White "Euge_chess"]
[Black "ljuks68"]
[Result "0-1"]
[WhiteElo "2063"]
[BlackElo "2378"]
[TimeControl "180+1"]
[EndTime "10:18:07 PST"]
[Termination "ljuks68 won on time"]

1. e4 {[%clk 0:03:00.9]} 1... e6 {[%clk 0:02:59.7]} 2. d4 {[%clk 0:03:00.5]}
2... d5 {[%clk 0:03:00.2]} 3. exd5 {[%clk 0:03:01.1]} 3... exd5 {[%clk
0:03:00.5]} 4. Nf3 {[%clk 0:03:01.3]} 4... Nf6 {[%clk 0:03:00.9]} 5. c4 {[%clk
0:03:01.2]} 5... Bb4+ {[%clk 0:02:59.6]} 6. Nc3 {[%clk 0:03:00.9]} 6... O-O
{[%clk 0:02:59.9]} 7. Be2 {[%clk 0:02:59.8]} 7... Be6 {[%clk 0:02:56.4]} 8. c5
{[%clk 0:02:53.9]} 8... b6 {[%clk 0:02:56.1]} 9. cxb6 {[%clk 0:02:51.3]} 9...
axb6 {[%clk 0:02:56.3]} 10. O-O {[%clk 0:02:51.8]} 10... c6 {[%clk 0:02:54.2]}
11. Bg5 {[%clk 0:02:49.4]} 11... Be7 {[%clk 0:02:53.2]} 12. Re1 {[%clk
0:02:45.8]} 12... Nbd7 {[%clk 0:02:53]} 13. Bd3 {[%clk 0:02:43.7]} 13... b5
{[%clk 0:02:52.6]} 14. Ne5 {[%clk 0:02:37.6]} 14... Nxe5 {[%clk 0:02:46.3]} 15.
dxe5 {[%clk 0:02:36.5]} 15... Nd7 {[%clk 0:02:46.7]} 16. Bxe7 {[%clk 0:02:32.9]}
16... Qxe7 {[%clk 0:02:46.6]} 17. f4 {[%clk 0:02:33.4]} 17... f5 {[%clk
0:02:44.1]} 18. exf6 {[%clk 0:02:19.8]} 18... Qxf6 {[%clk 0:02:43.5]} 19. Qe2
{[%clk 0:02:04.6]} 19... Rae8 {[%clk 0:02:42.2]} 20. g3 {[%clk 0:01:55.8]} 20...
Bf5 {[%clk 0:02:11.5]} 21. Qxe8 {[%clk 0:01:16]} 21... Rxe8 {[%clk 0:02:05.5]}
22. Rxe8+ {[%clk 0:01:15.2]} 22... Kf7 {[%clk 0:02:05.9]} 23. Bxf5 {[%clk
0:00:59.4]} 23... Kxe8 {[%clk 0:02:05.4]} 24. Re1+ {[%clk 0:00:57.6]} 24... Kd8
{[%clk 0:02:05]} 25. Bxd7 {[%clk 0:00:47.1]} 25... Kxd7 {[%clk 0:02:04.7]} 26.
Re5 {[%clk 0:00:46.9]} 26... Qd6 {[%clk 0:02:01.3]} 27. Kf1 {[%clk 0:00:43.1]}
27... Qb4 {[%clk 0:01:59.2]} 28. Re2 {[%clk 0:00:40.8]} 28... Qc4 {[%clk
0:01:57.7]} 29. Ke1 {[%clk 0:00:39.2]} 29... Kd6 {[%clk 0:01:55.1]} 30. Kd2
{[%clk 0:00:38.2]} 30... b4 {[%clk 0:01:54.5]} 31. Nd1 {[%clk 0:00:33.2]} 31...
Qxa2 {[%clk 0:01:50.3]} 32. g4 {[%clk 0:00:30.9]} 32... Qc4 {[%clk 0:01:49.7]}
33. Ne3 {[%clk 0:00:18.1]} 33... Qxf4 {[%clk 0:01:48.5]} 34. Kd3 {[%clk
0:00:15]} 34... c5 {[%clk 0:01:42.2]} 35. Nf5+ {[%clk 0:00:14.9]} 35... Kc6
{[%clk 0:01:32.9]} 36. Re6+ {[%clk 0:00:14.4]} 36... Kb5 {[%clk 0:01:26.5]} 37.
Nd6+ {[%clk 0:00:12.9]} 37... Ka4 {[%clk 0:01:25.3]} 38. Nb7 {[%clk 0:00:05.6]}
38... c4+ {[%clk 0:01:24.3]} 39. Kc2 {[%clk 0:00:04.9]} 39... b3+ {[%clk
0:01:16.5]} 40. Kc3 {[%clk 0:00:04.8]} 40... Qf3+ {[%clk 0:01:07.5]} 41. Kd4
{[%clk 0:00:04.7]} 41... Qf2+ {[%clk 0:00:59.2]} 42. Ke5 {[%clk 0:00:03.2]}
42... Qxb2+ {[%clk 0:00:58.1]} 43. Kxd5 {[%clk 0:00:02]} 43... Qg2+ {[%clk
0:00:47.6]} 44. Re4 {[%clk 0:00:01.3]} 44... b2 {[%clk 0:00:45.7]} 45. Nc5+
{[%clk 0:00:01.7]} 45... Kb5 {[%clk 0:00:45.1]} 0-1

[Event "*** Titled Tuesday Blitz"]
[Site "Chess.com"]
[Date "2020.12.29"]
[Round "2"]
[White "jocmil"]
[Black "Onischuk_V"]
[Result "0-1"]
[WhiteElo "2529"]
[BlackElo "2797"]
[TimeControl "180+1"]
[EndTime "10:18:09 PST"]
[Termination "Onischuk_V won by checkmate"]

1. d4 {[%clk 0:02:28.3]} 1... d6 {[%clk 0:02:50.2]} 2. c4 {[%clk 0:02:26.7]}
2... e5 {[%clk 0:02:49.8]} 3. dxe5 {[%clk 0:02:27]} 3... dxe5 {[%clk 0:02:50]}
4. Qxd8+ {[%clk 0:02:27.6]} 4... Kxd8 {[%clk 0:02:50.2]} 5. g3 {[%clk
0:02:24.6]} 5... c6 {[%clk 0:02:48.5]} 6. Nc3 {[%clk 0:02:23.9]} 6... Be6 {[%clk
0:02:46.2]} 7. b3 {[%clk 0:02:20.9]} 7... Nd7 {[%clk 0:02:45.3]} 8. Bb2 {[%clk
0:02:19.3]} 8... Kc7 {[%clk 0:02:38.5]} 9. Bg2 {[%clk 0:02:18.2]} 9... f6 {[%clk
0:02:31.4]} 10. O-O-O {[%clk 0:02:13.8]} 10... a5 {[%clk 0:02:30.9]} 11. e3
{[%clk 0:02:01.8]} 11... Nh6 {[%clk 0:02:24.4]} 12. Nge2 {[%clk 0:01:57.6]}
12... Nf7 {[%clk 0:02:20.4]} 13. h3 {[%clk 0:01:49.5]} 13... Nc5 {[%clk
0:02:19.9]} 14. Ne4 {[%clk 0:01:31.5]} 14... a4 {[%clk 0:02:16.9]} 15. Nxc5
{[%clk 0:01:28.7]} 15... Bxc5 {[%clk 0:02:16.3]} 16. Nc3 {[%clk 0:01:27.1]}
16... axb3 {[%clk 0:02:14.5]} 17. axb3 {[%clk 0:01:28]} 17... Be7 {[%clk
0:02:08.7]} 18. Kc2 {[%clk 0:01:12.6]} 18... h5 {[%clk 0:02:08.6]} 19. h4 {[%clk
0:01:03.2]} 19... Nh6 {[%clk 0:02:07.7]} 20. Rd2 {[%clk 0:00:48.6]} 20... Ng4
{[%clk 0:02:05]} 21. Rhd1 {[%clk 0:00:48.3]} 21... Bb4 {[%clk 0:01:56.4]} 22.
Be4 {[%clk 0:00:40.4]} 22... f5 {[%clk 0:01:29.6]} 23. Bf3 {[%clk 0:00:34.4]}
23... Rhf8 {[%clk 0:01:23.4]} 24. Ra1 {[%clk 0:00:25.9]} 24... Rxa1 {[%clk
0:01:21.8]} 25. Bxa1 {[%clk 0:00:26.8]} 25... g6 {[%clk 0:01:14.1]} 26. Bxg4
{[%clk 0:00:19.3]} 26... fxg4 {[%clk 0:01:13.9]} 27. Re2 {[%clk 0:00:18.4]}
27... Bf5+ {[%clk 0:01:13.5]} 28. e4 {[%clk 0:00:17.9]} 28... Be6 {[%clk
0:01:13.1]} 29. Bb2 {[%clk 0:00:18.4]} 29... Rf3 {[%clk 0:01:10.9]} 30. Nd1
{[%clk 0:00:17.7]} 30... Bd6 {[%clk 0:01:09.1]} 31. Bc1 {[%clk 0:00:10.9]} 31...
b5 {[%clk 0:01:08.6]} 32. Ne3 {[%clk 0:00:07.1]} 32... Bc5 {[%clk 0:01:07.3]}
33. Bd2 {[%clk 0:00:05.7]} 33... Bd4 {[%clk 0:01:06.3]} 34. Bc3 {[%clk
0:00:04.2]} 34... Kb6 {[%clk 0:01:05]} 35. cxb5 {[%clk 0:00:02.9]} 35... Kxb5
{[%clk 0:01:05.2]} 36. b4 {[%clk 0:00:03.4]} 36... Bc4 {[%clk 0:01:01.5]} 37.
Rd2 {[%clk 0:00:02]} 37... Bxe3 {[%clk 0:00:59.5]} 38. fxe3 {[%clk 0:00:02.9]}
38... Rxg3 {[%clk 0:00:58.8]} 39. Rd8 {[%clk 0:00:03.1]} 39... Rxe3 {[%clk
0:00:53]} 40. Bxe5 {[%clk 0:00:02.6]} 40... Rxe4 {[%clk 0:00:50.9]} 41. Rb8+
{[%clk 0:00:02.2]} 41... Ka6 {[%clk 0:00:50.3]} 42. Bc7 {[%clk 0:00:02.8]} 42...
Bd5 {[%clk 0:00:46.2]} 43. Kc3 {[%clk 0:00:02.3]} 43... Re7 {[%clk 0:00:43.3]}
44. Bd6 {[%clk 0:00:01.3]} 44... Re3+ {[%clk 0:00:41.1]} 45. Kd4 {[%clk
0:00:01.2]} 45... Re4+ {[%clk 0:00:41.1]} 46. Kc5 {[%clk 0:00:01.6]} 46... Rc4#
{[%clk 0:00:40.7]} 0-1